bitfinex/quotes_BTCUSD_20251116
["timestamp","ask_amount","ask_price","bid_price","bid_amount"]
[1763333891404,0.323,94721.0,94716.0,0.07425464]
[1763333891630,0.09068069,94717.0,94716.0,0.00010847]
[1763333891866,0.45986069,94717.0,94716.0,0.00010847]
[1763333892071,0.54620631,94717.0,94716.0,0.00010847]
[1763333892304,0.6256272,94717.0,94716.0,0.00010847]
[1763333892743,0.61841158,94717.0,94716.0,0.00010847]
[1763333893824,0.323,94716.0,94704.0,0.0133479]
[1763333894027,0.00435,94705.0,94688.0,0.12849512]
[1763333894418,0.3428088,94704.0,94687.0,0.12849512]
[1763333894876,0.0198088,94703.0,94687.0,0.12849512]
[1763333895051,0.0198088,94702.0,94686.0,0.12849512]
[1763333895263,0.0198088,94701.0,94687.0,0.12849512]
[1763333895399,0.29251219,94688.0,94687.0,0.15587363]
[1763333895599,0.29251219,94688.0,94687.0,0.12849512]
[1763333895832,0.29251219,94688.0,94687.0,0.17374512]
[1763333896036,0.29251219,94688.0,94687.0,0.04525]
[1763333896237,0.29251219,94688.0,94687.0,0.11903]
[1763333897143,1.05195376,94716.0,94687.0,0.11903]
[1763333897305,0.08807272,94715.0,94688.0,0.07378]
[1763333897667,0.01981722,94714.0,94688.0,0.07378]
[1763333897873,0.01981722,94713.0,94688.0,0.07378]
[1763333898022,0.01981722,94712.0,94688.0,0.07378]
[1763333898252,0.01981722,94711.0,94692.0,0.03529]
[1763333898452,0.01981722,94710.0,94692.0,0.03529]
[1763333898651,0.0682555,94715.0,94693.0,0.07378]
[1763333898652,0.01981722,94709.0,94693.0,0.07378]
[1763333898894,0.01981722,94708.0,94693.0,0.07378]
[1763333899110,0.0682555,94715.0,94693.0,0.07378]
[1763333899318,0.323,94713.0,94693.0,0.07378]
[1763333899543,0.01982069,94712.0,94693.0,0.07378]
[1763333900666,0.01982069,94712.0,94692.0,0.03529]
[1763333901994,0.01982069,94712.0,94692.0,0.10907]
[1763333902208,0.01982069,94712.0,94693.0,0.1491]
[1763333902428,0.09875084,94712.0,94693.0,0.1491]
[1763333902655,0.01982069,94711.0,94694.0,0.07378]
[1763333902872,0.323,94715.0,94706.0,0.09297977]
[1763333903084,0.01982926,94714.0,94710.0,0.08387]
[1763333903321,0.01982926,94714.0,94695.0,0.1491]
[1763333903322,0.17531885,94715.0,94703.0,0.09297977]
[1763333903534,0.17531885,94715.0,94702.0,0.09297977]
[1763333904328,0.17531885,94715.0,94701.0,0.09297977]
[1763333904808,0.04476,94702.0,94701.0,0.09297977]
[1763333905031,0.04476,94702.0,94699.0,0.09297977]
[1763333905286,0.36776,94714.0,94700.0,0.09297977]
[1763333905509,0.40788,94701.0,94700.0,0.09297977]
[1763333905722,1.05195376,94716.0,94700.0,0.12236]
[1763333906378,1.05195376,94716.0,94701.0,0.02153704]
[1763333906581,1.05195376,94716.0,94715.0,0.0744097]
[1763333907174,1.05195376,94716.0,94707.0,0.03529]
[1763333907330,0.00013374,94716.0,94707.0,0.03529]
[1763333907536,0.00013374,94716.0,94715.0,0.04858]
[1763333907761,0.00013374,94716.0,94715.0,0.060816]
[1763333907959,0.00013374,94716.0,94708.0,0.07378]
[1763333908737,0.323,94721.0,94714.0,0.09295898]
[1763333908941,0.32311331,94721.0,94714.0,0.09295898]
[1763333909171,0.32311331,94721.0,94715.0,0.09295898]
[1763333910522,0.32311331,94721.0,94720.0,0.04858]
[1763333911353,0.00011331,94721.0,94720.0,0.12236]
[1763333911613,0.00011331,94721.0,94720.0,0.14153898]
[1763333911844,0.00011331,94721.0,94720.0,0.12236]
[1763333914540,0.00011331,94721.0,94720.0,0.04858]
[1763333915251,0.25475331,94721.0,94720.0,0.04858]
[1763333915668,1.09270989,94730.0,94720.0,0.04858]
[1763333915925,0.01983405,94729.0,94725.0,0.09317048]
[1763333916073,0.01983405,94728.0,94725.0,0.09317048]
[1763333916276,0.323,94730.0,94726.0,0.09317048]
[1763333916502,0.01983571,94729.0,94726.0,0.09317048]
[1763333916738,0.01983571,94728.0,94726.0,0.09317048]
[1763333916942,0.323,94730.0,94726.0,0.09317048]
[1763333917165,0.01983571,94729.0,94726.0,0.09317048]
[1763333917350,0.01983571,94728.0,94726.0,0.09317048]
[1763333917555,0.323,94730.0,94726.0,0.09317048]
[1763333917762,0.323,94730.0,94727.0,0.07378]
[1763333917951,1.05182002,94731.0,94729.0,0.14175048]
[1763333918150,1.05182002,94731.0,94730.0,0.1417483]
[1763333918368,1.05182002,94731.0,94730.0,0.04858]
[1763333918798,1.05182002,94731.0,94730.0,0.14172294]
[1763333919759,1.05182002,94731.0,94730.0,0.04858]
[1763333920533,1.05182002,94731.0,94729.0,0.09314294]
[1763333920704,1.05182002,94731.0,94730.0,0.04858]
[1763333922092,1.05182002,94731.0,94730.0,0.21550294]
[1763333922299,1.05182002,94731.0,94730.0,0.22967523]
[1763333922497,1.05182002,94731.0,94730.0,0.12236]
[1763333922730,1.05182002,94740.0,94730.0,0.12236]
[1763333922890,1.05182002,94747.0,94743.0,0.04858]
[1763333923244,0.00011335,94747.0,94746.0,0.08387]
[1763333923600,0.00011335,94747.0,94746.0,0.15765]
[1763333924002,0.00011335,94747.0,94746.0,0.176944]
[1763333924741,0.00011335,94747.0,94746.0,0.15765]
[1763333925484,0.57763335,94747.0,94746.0,0.15765]
[1763333925691,0.08484,94747.0,94746.0,0.15765]
[1763333926106,0.323,94761.0,94746.0,0.15765]
[1763333926306,0.01172355,94774.0,94760.0,0.04748]
[1763333926524,0.01183688,94774.0,94773.0,0.08161]
[1763333926688,0.00011333,94774.0,94773.0,0.08161]
[1763333926899,0.00011333,94774.0,94773.0,0.15014]
[1763333930480,0.00011333,94774.0,94773.0,0.08161]
[1763333930630,0.04599333,94774.0,94763.0,0.09233031]
[1763333930824,0.04057,94763.0,94754.0,0.03413]
[1763333931056,0.04341874,94762.0,94741.0,0.13000542]
[1763333931227,0.0292,94742.0,94732.0,0.03529]
[1763333931428,0.0292,94742.0,94722.0,0.13000542]
[1763333931429,0.0584,94733.0,94722.0,0.13000542]
[1763333931652,0.0584,94733.0,94682.0,0.03413]
[1763333931653,0.04341874,94722.0,94702.0,0.03413]
[1763333931893,0.04341874,94722.0,94692.0,0.06853]
[1763333931894,0.323,94711.0,94692.0,0.09233031]
[1763333932075,0.323,94711.0,94683.0,0.06853]
[1763333932231,0.01663,94697.0,94690.0,0.03413]
[1763333932434,0.01663,94697.0,94690.0,0.00044926]
[1763333932838,0.36888,94691.0,94690.0,0.00044926]
[1763333933039,0.45991781,94691.0,94690.0,0.00044926]
[1763333933262,0.52552725,94691.0,94690.0,0.00044926]
[1763333933466,0.47790818,94691.0,94690.0,0.00044926]
[1763333933663,0.323,94691.0,94690.0,0.00044926]
[1763333934606,0.41476,94691.0,94690.0,0.00044926]
[1763333934809,0.47789231,94691.0,94690.0,0.00044926]
[1763333935374,0.47789231,94691.0,94638.0,0.09233031]
[1763333935375,0.43212387,94690.0,94638.0,0.09233031]
[1763333935579,0.04341874,94669.0,94634.0,0.09233031]
[1763333935798,0.53104943,94657.0,94643.0,0.09233031]
[1763333935995,2.64381773,94657.0,94635.0,0.09233031]
[1763333936190,2.68929773,94657.0,94631.0,0.09233031]
[1763333936417,2.68929773,94657.0,94630.0,0.0004]
[1763333937065,2.68929773,94657.0,94656.0,0.00347432]
[1763333939880,2.71091175,94657.0,94656.0,0.00347432]
[1763333940100,2.68929773,94657.0,94656.0,0.00347432]
[1763333940505,0.04341874,94649.0,94630.0,0.0004]
[1763333940712,0.04570515,94650.0,94630.0,0.00051331]
[1763333940713,0.00865,94631.0,94630.0,0.00051331]
[1763333940915,1.38347002,94631.0,94630.0,0.00051331]
[1763333941131,1.42895002,94631.0,94630.0,0.00051331]
[1763333941331,1.57603814,94631.0,94630.0,0.00051331]
[1763333941533,1.47236876,94631.0,94630.0,0.00051331]
[1763333943483,1.49194033,94631.0,94630.0,0.00051331]
[1763333943688,0.43212387,94630.0,94620.0,0.0004]
[1763333943891,0.50183943,94621.0,94620.0,0.00053374]
[1763333944135,2.61460773,94621.0,94620.0,0.00053374]
[1763333944437,2.74072324,94621.0,94620.0,0.00053374]
[1763333944681,1.48307329,94620.0,94610.0,0.0004]
[1763333944902,0.41212389,94610.0,94565.0,0.03413]
[1763333945117,0.08779874,94601.0,94569.0,0.06853]
[1763333945317,0.66555874,94601.0,94569.0,0.06853]
[1763333945478,0.66555874,94601.0,94560.0,0.0004]
[1763333945479,0.54119874,94601.0,94560.0,0.0004]
[1763333945643,0.45627874,94601.0,94560.0,0.0004]
[1763333945856,0.42212388,94600.0,94560.0,0.0004]
[1763333946059,0.42212388,94600.0,94583.0,0.03413]
[1763333946060,0.41368069,94591.0,94583.0,0.03413]
[1763333946272,0.323,94591.0,94583.0,0.03413]
[1763333946518,0.323,94591.0,94590.0,0.04788]
[1763333946691,1.14250071,94621.0,94590.0,0.11641]
[1763333946875,1.14250071,94621.0,94599.0,0.04748]
[1763333947276,1.46563463,94621.0,94620.0,0.03413]
[1763333947484,0.323,94620.0,94600.0,0.06853]
[1763333947911,1.14263463,94621.0,94600.0,0.06853]
[1763333948082,0.323,94619.0,94600.0,0.06853]
[1763333948285,0.323,94619.0,94598.0,0.03413]
[1763333948492,0.323,94609.0,94598.0,0.03413]
[1763333948731,1.37482002,94609.0,94598.0,0.03413]
[1763333949330,1.37482002,94609.0,94608.0,0.04748]
[1763333949331,0.323,94609.0,94608.0,0.04748]
[1763333949732,0.09081461,94621.0,94608.0,0.11601]
[1763333950132,0.09081461,94621.0,94620.0,0.04748]
[1763333950133,0.00013392,94621.0,94620.0,0.04748]
[1763333950531,0.00013392,94621.0,94620.0,0.11601]
[1763333951638,0.01999998,94690.0,94620.0,0.11601]
[1763333951639,0.52547471,94680.0,94630.0,0.52547471]
[1763333951797,0.0537499,94679.0,94659.0,0.03413]
[1763333952000,0.00044784,94680.0,94659.0,0.03413]
[1763333952271,0.00044784,94680.0,94679.0,0.03413]
[1763333952536,0.00044784,94680.0,94679.0,0.08161]
[1763333953115,0.01707784,94680.0,94659.0,0.03413]
[1763333953320,0.01663,94660.0,94644.0,0.03413]
[1763333953530,0.33963,94660.0,94637.0,0.03413]
[1763333953958,0.39133723,94660.0,94637.0,0.03413]
[1763333954552,0.33963,94660.0,94637.0,0.03413]
[1763333955189,0.323,94660.0,94638.0,0.06853]
[1763333955394,0.49284,94639.0,94638.0,0.06853]
[1763333955602,0.49284,94639.0,94638.0,0.078796]
[1763333955830,0.49284,94639.0,94638.0,0.126436]
[1763333955831,0.40792,94639.0,94638.0,0.126436]
[1763333956025,0.323,94639.0,94638.0,0.126436]
[1763333956252,0.52547471,94670.0,94638.0,0.126436]
[1763333956466,0.52547471,94670.0,94639.0,0.0880466]
[1763333956667,0.52592255,94670.0,94639.0,0.0880466]
[1763333957254,0.52592255,94670.0,94648.0,0.00022296]
[1763333957595,0.52592255,94670.0,94649.0,0.0337]
[1763333958248,0.323,94669.0,94649.0,0.0337]
[1763333958698,0.323,94669.0,94650.0,0.07199]
[1763333958867,0.323,94669.0,94651.0,0.0105913]
[1763333959066,0.323,94669.0,94650.0,0.07199]
[1763333960256,0.52592255,94670.0,94650.0,0.07199]
[1763333960372,0.34268121,94669.0,94650.0,0.07199]
[1763333960579,0.323,94669.0,94650.0,0.07199]
[1763333961048,0.323,94659.0,94648.0,0.00022296]
[1763333961252,0.01968757,94658.0,94648.0,0.00022296]
[1763333961412,0.05785874,94649.0,94648.0,0.00022296]
[1763333961594,2.51331461,94649.0,94648.0,0.00022296]
[1763333961796,2.63142399,94649.0,94648.0,0.00022296]
[1763333962048,2.63142399,94649.0,94599.0,0.03413]
[1763333962049,0.04341874,94639.0,94599.0,0.03413]
[1763333962251,0.04341874,94639.0,94560.0,0.0004]
[1763333962252,0.01422,94600.0,94588.0,0.03365]
[1763333962740,0.34274489,94599.0,94588.0,0.03365]
[1763333963039,0.34274489,94599.0,94577.0,0.06942]
[1763333963040,0.01974489,94598.0,94577.0,0.06942]
[1763333963264,0.01974489,94598.0,94563.0,0.12598031]
[1763333963265,0.04917159,94597.0,94590.0,0.00053392]
[1763333963416,0.34274489,94596.0,94590.0,0.00053392]
[1763333963579,0.41368069,94594.0,94590.0,0.00053392]
[1763333963786,0.34274489,94593.0,94590.0,0.00053392]
[1763333963991,0.01974489,94592.0,94590.0,0.00053392]
[1763333964226,0.323,94591.0,94590.0,0.00053392]
[1763333964432,0.34274489,94591.0,94590.0,0.00053392]
[1763333965521,0.42770489,94591.0,94590.0,0.11502392]
[1763333965735,0.51266489,94591.0,94590.0,0.11502392]
[1763333965959,1.05182002,94608.0,94590.0,0.12652631]
[1763333966177,0.01973927,94607.0,94591.0,0.06942]
[1763333966401,0.323,94617.0,94591.0,0.06942]
[1763333966606,0.01973677,94616.0,94591.0,0.06942]
[1763333966831,0.01973677,94615.0,94592.0,0.01959342]
[1763333967061,0.01973677,94614.0,94593.0,0.09233031]
[1763333967301,1.05182002,94635.0,94617.0,0.04507]
[1763333967513,1.05182002,94635.0,94628.0,0.03365]
[1763333967745,0.11041451,94629.0,94628.0,0.03365]
[1763333967957,0.43341451,94629.0,94628.0,0.03365]
[1763333970193,0.41368069,94629.0,94628.0,0.03365]
[1763333970327,0.43341921,94629.0,94628.0,0.03365]
[1763333971117,0.34273848,94629.0,94628.0,0.03365]
[1763333971538,0.323,94628.0,94624.0,0.07451424]
[1763333971778,0.01422,94625.0,94619.0,0.07451424]
[1763333972016,0.01973848,94624.0,94619.0,0.00013392]
[1763333972228,0.05662433,94624.0,94619.0,0.00013392]
[1763333972456,0.01422,94620.0,94619.0,0.00013392]
[1763333972875,1.37482002,94625.0,94619.0,0.00013392]
[1763333972876,0.01973848,94621.0,94619.0,0.00013392]
[1763333973089,0.01973848,94620.0,94619.0,0.00013392]
[1763333973311,0.01973848,94620.0,94619.0,0.00093887]
[1763333973530,0.01973848,94624.0,94619.0,0.00093887]
[1763333973741,0.34273848,94623.0,94619.0,0.00013392]
[1763333973946,0.01973848,94622.0,94619.0,0.00013392]
[1763333974296,0.01973848,94622.0,94621.0,0.00074943]
[1763333974498,0.03395848,94622.0,94621.0,0.00074943]
[1763333975286,0.44191848,94622.0,94621.0,0.00074943]
[1763333975478,0.61183848,94622.0,94621.0,0.00074943]
[1763333975681,0.52687848,94622.0,94621.0,0.00074943]
[1763333975887,0.44191848,94622.0,94621.0,0.00074943]
[1763333976403,0.42769848,94622.0,94621.0,0.00074943]
[1763333978390,0.43407899,94622.0,94621.0,0.00074943]
[1763333978595,1.49502727,94622.0,94621.0,0.00074943]
[1763333978807,0.35695848,94622.0,94621.0,0.00074943]
[1763333979550,0.37117848,94622.0,94621.0,0.00074943]
[1763333980480,0.35695848,94622.0,94621.0,0.00074943]
[1763333980677,0.34273848,94622.0,94621.0,0.00074943]
[1763333983841,0.34273848,94622.0,94621.0,0.03439943]
[1763333984269,0.01973848,94622.0,94621.0,0.03439943]
[1763333984479,0.01973848,94630.0,94621.0,0.10891367]
[1763333984688,0.34273848,94630.0,94621.0,0.10816424]
[1763333984923,0.01973848,94629.0,94621.0,0.10816424]
[1763333985160,0.01973848,94629.0,94622.0,0.07451424]
[1763333985373,0.40796,94628.0,94623.0,0.07451424]
[1763333985587,0.0103,94622.0,94621.0,0.07451424]
[1763333985807,0.36641874,94621.0,94619.0,0.00013392]
[1763333986022,0.03003848,94620.0,94619.0,0.00013392]
[1763333986238,0.46700786,94620.0,94619.0,0.00013392]
[1763333986700,0.04341874,94609.0,94598.0,0.07451424]
[1763333986911,0.09068069,94599.0,94597.0,0.07451424]
[1763333987128,0.34273848,94598.0,94597.0,0.07451424]
[1763333987341,0.34273848,94598.0,94590.0,0.0004]
[1763333987555,0.01979694,94597.0,94596.0,0.07480383]
[1763333987778,0.01979694,94597.0,94590.0,0.0004]
[1763333988003,0.323,94598.0,94593.0,0.09233031]
[1763333988004,0.01979694,94596.0,94593.0,0.09233031]
[1763333988216,0.323,94599.0,94595.0,0.093465]
[1763333988430,0.323,94599.0,94597.0,0.093465]
[1763333989320,0.323,94606.0,94596.0,0.093465]
[1763333989532,0.323,94606.0,94600.0,0.09355259]
[1763333990247,0.323,94606.0,94592.0,0.13000542]
[1763333990611,0.323,94606.0,94605.0,0.00119369]
[1763333992305,0.0001342,94609.0,94605.0,0.11761369]
[1763333992563,0.0001342,94609.0,94608.0,0.17617542]
[1763333992720,0.52547471,94615.0,94608.0,0.17617542]
[1763333992721,0.323,94614.0,94608.0,0.14429969]
[1763333992927,0.323,94614.0,94608.0,0.07025]
[1763333993143,0.323,94614.0,94608.0,0.03837427]
[1763333993344,0.323,94614.0,94602.0,0.0359]
[1763333993547,0.323,94614.0,94602.0,0.00402427]
[1763333993807,0.323,94614.0,94590.0,0.0004]
[1763333993984,0.323,94614.0,94613.0,0.09352399]
[1763333994229,0.33729,94620.0,94608.0,0.001]
[1763333994444,0.44095938,94620.0,94615.0,0.09354827]
[1763333994793,0.44095938,94620.0,94614.0,0.06167254]
[1763333994996,0.44095938,94620.0,94614.0,0.02979681]
[1763333995198,0.44095938,94620.0,94603.0,0.0359]
[1763333995421,0.08496,94604.0,94603.0,0.0359]
[1763333995820,0.08496,94604.0,94603.0,0.08207]
[1763333996045,0.08496,94604.0,94603.0,0.15232]
[1763333997146,0.08496,94604.0,94603.0,0.15332]
[1763333997461,0.48816582,94604.0,94603.0,0.15332]
[1763333997661,0.40796,94604.0,94603.0,0.15332]
[1763333997971,0.40796,94604.0,94603.0,0.15456924]
[1763333998174,0.17955725,94604.0,94603.0,0.15456924]
[1763333998861,0.01178329,94617.0,94603.0,0.15356924]
[1763333999196,0.52547471,94630.0,94616.0,0.04705824]
[1763333999394,0.01198116,94621.0,94616.0,0.04617]
[1763333999596,1.05182002,94624.0,94616.0,0.01429921]
[1763333999778,1.05182002,94624.0,94606.0,0.07025]
[1763333999957,1.05182002,94624.0,94606.0,0.080865]
[1763334000162,0.34287021,94623.0,94606.0,0.080865]
[1763334000365,0.01987021,94622.0,94606.0,0.07025]
[1763334000604,0.01987021,94621.0,94606.0,0.07025]
[1763334000796,0.04343,94607.0,94590.0,0.0005342]
[1763334001024,0.03595,94604.0,94590.0,0.0005342]
[1763334001286,0.323,94599.0,94590.0,0.0005342]
[1763334001522,0.323,94599.0,94591.0,0.13117878]
[1763334001721,0.08888522,94598.0,94591.0,0.09930799]
[1763334001930,0.04343,94592.0,94560.0,0.0004]
[1763334002142,0.04343,94592.0,94563.0,0.02757]
[1763334002143,0.323,94589.0,94563.0,0.02757]
[1763334002353,0.323,94579.0,94563.0,0.02757]
[1763334002541,0.01988522,94578.0,94563.0,0.02757]
[1763334002773,0.01988522,94577.0,94563.0,0.02757]
[1763334002950,0.01988522,94576.0,94563.0,0.02757]
[1763334003152,0.01988522,94575.0,94563.0,0.02757]
[1763334003353,0.02102,94578.0,94563.0,0.02757]
[1763334003522,0.01986988,94577.0,94563.0,0.02757]
[1763334003724,0.01986988,94576.0,94563.0,0.02757]
[1763334003925,0.01986988,94575.0,94563.0,0.09782]
[1763334004138,0.02102,94582.0,94563.0,0.107642]
[1763334004308,0.01986248,94581.0,94564.0,0.07025]
[1763334004548,0.323,94587.0,94564.0,0.07025]
[1763334004763,0.323,94587.0,94586.0,0.12729215]
[1763334005081,0.323,94587.0,94586.0,0.03366]
[1763334005082,0.01986146,94587.0,94586.0,0.03366]
[1763334005279,0.27474146,94587.0,94586.0,0.03366]
[1763334005481,0.27474146,94587.0,94586.0,0.15008]
[1763334005482,0.08496,94587.0,94586.0,0.15008]
[1763334005803,0.01985763,94587.0,94579.0,0.03366]
[1763334005995,1.05182002,94589.0,94579.0,0.03366]
[1763334006215,0.34285731,94588.0,94579.0,0.03366]
[1763334006369,0.01985731,94587.0,94579.0,0.03366]
[1763334006569,0.323,94588.0,94579.0,0.03366]
[1763334007014,0.0198563,94587.0,94579.0,0.03366]
[1763334007208,0.323,94602.0,94587.0,0.04617]
[1763334007407,0.323,94602.0,94580.0,0.07025]
[1763334007408,0.01985541,94591.0,94580.0,0.07025]
[1763334007566,0.01985541,94590.0,94580.0,0.07025]
[1763334007767,0.01985541,94590.0,94563.0,0.02757]
[1763334007768,0.04343,94581.0,94563.0,0.02757]
[1763334007972,0.323,94579.0,94563.0,0.02757]
[1763334008242,0.81992687,94580.0,94560.0,0.18449719]
[1763334008243,0.03595,94564.0,94560.0,0.18449719]
[1763334008447,0.03595,94564.0,94560.0,0.0004]
[1763334008612,0.01985492,94563.0,94560.0,0.0004]
[1763334008816,0.04343,94561.0,94560.0,0.0004]
[1763334009016,0.01985492,94561.0,94560.0,0.0004]
[1763334009219,0.01985492,94561.0,94560.0,0.09397554]
[1763334009609,0.01985492,94561.0,94560.0,0.0004]
[1763334009805,0.00013412,94561.0,94560.0,0.11682]
[1763334010206,0.00013412,94561.0,94560.0,0.0004]
[1763334010434,0.43556412,94561.0,94560.0,0.09026791]
[1763334010779,0.60248807,94561.0,94560.0,0.002444]
[1763334010979,0.41212389,94560.0,94550.0,0.0004]
[1763334011189,0.41212389,94560.0,94511.0,0.0359]
[1763334011190,0.04341874,94549.0,94510.0,0.13140612]
[1763334011320,0.41212389,94540.0,94510.0,0.13140612]
[1763334011526,0.069,94531.0,94510.0,0.0004]
[1763334011727,1.14065585,94531.0,94510.0,0.0004]
[1763334012148,1.16049585,94531.0,94510.0,0.0004]
[1763334012355,0.04570515,94530.0,94510.0,0.0004]
[1763334012565,0.01983583,94529.0,94510.0,0.0004]
[1763334012767,0.01983583,94528.0,94513.0,0.0359]
[1763334012966,0.01983583,94527.0,94513.0,0.0359]
[1763334013222,0.01983583,94526.0,94513.0,0.0359]
[1763334013435,0.01984,94521.0,94510.0,0.0004]
[1763334013625,1.41449585,94521.0,94510.0,0.0004]
[1763334013828,1.48300585,94521.0,94510.0,0.0004]
[1763334014029,1.39465585,94521.0,94510.0,0.0004]
[1763334014260,0.34283583,94521.0,94510.0,0.0004]
[1763334014463,0.00013405,94530.0,94510.0,0.0004]
[1763334015148,0.01984,94521.0,94510.0,0.0004]
[1763334015364,1.58439994,94521.0,94510.0,0.0004]
[1763334015617,0.41212389,94520.0,94510.0,0.0004]
[1763334015789,0.09068069,94511.0,94510.0,0.0004]
[1763334016043,1.50315063,94511.0,94510.0,0.0004]
[1763334016215,1.67685001,94511.0,94510.0,0.0004]
[1763334016632,1.72026875,94511.0,94510.0,0.0004]
[1763334016840,1.19353333,94510.0,94500.0,0.01]
[1763334017039,0.04411874,94501.0,94500.0,0.01]
[1763334017278,1.43867868,94501.0,94500.0,0.01]
[1763334017449,1.50946868,94501.0,94500.0,0.01166888]
[1763334018062,1.52129866,94501.0,94500.0,0.01166888]
[1763334018372,1.52143263,94501.0,94500.0,0.01166888]
[1763334018981,1.07169391,94501.0,94500.0,0.01166888]
[1763334019196,1.05195399,94501.0,94500.0,0.01166888]
[1763334019394,1.37495399,94501.0,94500.0,0.01166888]
[1763334020778,1.47862337,94501.0,94500.0,0.01166888]
[1763334021180,1.37495399,94501.0,94500.0,0.01166888]
[1763334023005,1.47961399,94501.0,94500.0,0.01166888]
[1763334024755,1.49924142,94501.0,94500.0,0.01166888]
[1763334024960,1.39458142,94501.0,94500.0,0.01166888]
[1763334025163,0.00013397,94501.0,94500.0,0.12320888]
[1763334025448,0.08517397,94501.0,94500.0,0.13552977]
[1763334025662,0.00013397,94501.0,94500.0,0.12320888]
[1763334025874,0.00013397,94501.0,94500.0,0.01166888]
[1763334026091,0.10479397,94501.0,94500.0,0.01166888]
[1763334026516,0.00013397,94501.0,94500.0,0.01166888]
[1763334028301,0.42779397,94501.0,94500.0,0.01166888]
[1763334028526,0.47057337,94501.0,94500.0,0.01166888]
[1763334028741,0.49023285,94501.0,94500.0,0.01166888]
[1763334029360,0.44745345,94501.0,94500.0,0.01166888]
[1763334030445,0.41212389,94500.0,94490.0,0.0004]
[1763334030666,0.0007,94491.0,94490.0,0.0004]
[1763334030871,1.3951795,94491.0,94490.0,0.0004]
[1763334031078,1.4659695,94491.0,94490.0,0.0004]
[1763334031283,1.56967375,94491.0,94490.0,0.0004]
[1763334031970,1.61309249,94491.0,94490.0,0.0004]
[1763334032523,0.04570515,94480.0,94470.0,0.0004]
[1763334032719,0.48317069,94471.0,94470.0,0.0004]
[1763334032918,1.65554913,94471.0,94470.0,0.0004]
[1763334033124,0.40789064,94470.0,94435.0,0.07399747]
[1763334033349,0.0414719,94430.0,94419.0,0.07399747]
[1763334033562,0.323,94429.0,94417.0,0.07399747]
[1763334033777,0.323,94429.0,94413.0,0.07399747]
[1763334033992,0.0709238,94429.0,94404.0,0.07399747]
[1763334034206,0.0001338,94429.0,94406.0,0.06562]
[1763334034705,0.0001338,94429.0,94403.0,0.07399747]
[1763334035175,0.0001338,94429.0,94404.0,0.07399747]
[1763334035381,0.17016,94417.0,94404.0,0.07399747]
[1763334035775,0.17016,94417.0,94401.0,0.07399747]
[1763334035776,0.09670191,94417.0,94401.0,0.07399747]
[1763334035989,0.08508,94417.0,94401.0,0.07399747]
[1763334036196,0.323,94427.0,94416.0,0.00242873]
[1763334036395,0.323,94427.0,94417.0,0.06562]
[1763334036595,0.0001338,94429.0,94426.0,0.04592]
[1763334036804,3.8e-06,94429.0,94428.0,0.08933874]
[1763334037018,1.05182002,94455.0,94429.0,0.04341874]
[1763334037240,1.05182002,94455.0,94440.0,0.07433662]
[1763334037447,1.05182002,94455.0,94454.0,0.03514]
[1763334037660,1.05182002,94457.0,94448.0,0.03514]
[1763334038294,0.323,94455.0,94440.0,0.07433662]
[1763334038508,0.323,94455.0,94431.0,0.09253889]
[1763334038509,0.323,94449.0,94439.0,0.07433662]
[1763334038722,0.01974637,94448.0,94430.0,0.07433662]
[1763334038936,0.01974637,94448.0,94429.0,0.00044817]
[1763334038937,0.323,94439.0,94429.0,0.00044817]
[1763334039146,0.323,94437.0,94429.0,0.00044817]
[1763334039358,0.01974637,94436.0,94429.0,0.00044817]
[1763334039566,0.01974637,94435.0,94429.0,0.00044817]
[1763334039788,0.01974637,94434.0,94429.0,0.00044817]
[1763334039980,0.01974637,94433.0,94429.0,0.00044817]
[1763334040192,0.01974637,94432.0,94429.0,0.00044817]
[1763334040389,0.01974637,94431.0,94429.0,0.00044817]
[1763334040606,0.04746637,94430.0,94429.0,0.00044817]
[1763334041031,0.11825637,94430.0,94429.0,0.00044817]
[1763334041239,0.34274637,94430.0,94429.0,0.00044817]
[1763334041454,0.01974637,94430.0,94429.0,0.06606817]
[1763334041667,1.05182002,94466.0,94429.0,0.08010865]
[1763334041899,0.01977151,94465.0,94443.0,0.07460881]
[1763334042109,0.01977151,94464.0,94446.0,0.07460881]
[1763334042337,0.01977151,94463.0,94449.0,0.07460881]
[1763334042555,1.05182002,94466.0,94447.0,0.07460881]
[1763334042556,0.323,94459.0,94447.0,0.07460881]
[1763334042767,0.77140945,94457.0,94444.0,0.07460881]
[1763334042989,0.01977151,94456.0,94436.0,0.07460881]
[1763334043223,0.0414719,94450.0,94436.0,0.07460881]
[1763334043424,0.77140945,94446.0,94435.0,0.07460881]
[1763334043643,0.01977151,94445.0,94429.0,0.00044817]
[1763334043843,0.09056151,94445.0,94429.0,0.00044817]
[1763334044107,0.01977151,94444.0,94429.0,0.07505698]
[1763334044261,0.77140945,94439.0,94429.0,0.00044817]
[1763334044446,0.01977151,94438.0,94429.0,0.00044817]
[1763334045308,0.0414719,94470.0,94437.0,0.03514]
[1763334045543,0.01979014,94469.0,94448.0,0.07472615]
[1763334045768,0.01979014,94468.0,94455.0,0.07472615]
[1763334046008,0.81288135,94470.0,94439.0,0.09253889]
[1763334046009,0.01979014,94467.0,94454.0,0.07472615]
[1763334046217,0.01979014,94466.0,94452.0,0.07472615]
[1763334046434,0.323,94461.0,94452.0,0.07472615]
[1763334046638,0.01979014,94460.0,94452.0,0.07472615]
[1763334046852,0.323,94459.0,94453.0,0.0674]
[1763334047066,0.01979014,94458.0,94454.0,0.07472615]
[1763334047307,0.01979014,94457.0,94454.0,0.07472615]
[1763334047539,0.01979014,94456.0,94455.0,0.0674]
[1763334047776,0.01979014,94456.0,94440.0,0.09253889]
[1763334048000,0.323,94469.0,94455.0,0.03614]
[1763334048214,0.01978905,94468.0,94460.0,0.07474836]
[1763334048416,0.01978905,94467.0,94460.0,0.07474836]
[1763334048620,0.01978905,94466.0,94460.0,0.07474836]
[1763334048839,0.01978905,94465.0,94460.0,0.07474836]
[1763334049051,0.01978905,94464.0,94460.0,0.07474836]
[1763334049270,0.01978905,94463.0,94460.0,0.07474836]
[1763334049463,0.01978905,94463.0,94455.0,0.03614]
[1763334049464,0.01978905,94462.0,94455.0,0.03614]
[1763334049664,0.01978905,94461.0,94455.0,0.03614]
[1763334049909,0.01978905,94460.0,94456.0,0.0674]
[1763334050130,0.00013427,94464.0,94463.0,0.0443]
[1763334050284,0.00013427,94464.0,94463.0,0.1117]
[1763334052978,0.323,94489.0,94463.0,0.1117]